bitfinex/quotes_ETHUSD_20250508
["timestamp","ask_amount","ask_price","bid_price","bid_amount"]
[1746744092648,0.13148613,2182.6,2182.4,3.0]
[1746744093047,4.58137544,2182.8,2182.4,3.0]
[1746744093246,0.1316519,2182.7,2182.5,0.8625172]
[1746744093596,4.57980759,2183.5,2183.1,4.58063749]
[1746744093820,4.57966889,2183.6,2183.2,9.10700509]
[1746744094008,0.11011118,2183.4,2183.2,9.10700509]
[1746744094314,0.11061513,2183.3,2183.2,9.10700509]
[1746744094499,5.39078479,2183.7,2183.2,10.55745082]
[1746744094674,4.57982526,2183.5,2183.2,10.55745082]
[1746744095025,4.69105795,2183.4,2183.2,10.55745082]
[1746744095309,4.69105795,2183.4,2183.2,6.10700509]
[1746744095510,9.27127589,2183.4,2183.2,6.10700509]
[1746744095814,4.69115637,2183.4,2183.2,6.10700509]
[1746744096001,4.58022259,2183.3,2183.2,6.10700509]
[1746744096405,5.46553856,2183.3,2183.2,6.10700509]
[1746744096802,4.69103856,2183.3,2183.2,6.10700509]
[1746744097580,5.69755543,2183.3,2183.2,6.10700509]
[1746744097825,0.11081597,2183.3,2183.2,6.10700509]
[1746744098120,4.58004205,2183.4,2183.2,6.10700509]
[1746744098320,4.57990694,2183.5,2183.3,6.10700509]
[1746744098689,4.57966537,2183.6,2183.3,6.10700509]
[1746744098690,4.57970268,2183.6,2183.3,6.10700509]
[1746744098890,0.7992,2183.7,2183.3,6.10700509]
[1746744099081,4.58001282,2183.4,2183.3,6.10700509]
[1746744100112,5.37471282,2183.4,2183.3,6.10700509]
[1746744101924,5.92471282,2183.4,2183.3,6.10700509]
[1746744102793,4.58148165,2182.7,2182.6,6.10700509]
[1746744103015,4.58093198,2183.0,2182.7,3.0]
[1746744103225,1.3447,2183.4,2182.8,0.8131]
[1746744103392,4.58106189,2182.9,2182.8,6.10700509]
[1746744105107,4.58106189,2182.9,2182.2,6.10700509]
[1746744105108,4.58184319,2182.6,2182.2,6.10700509]
[1746744105295,4.58198595,2182.5,2182.3,3.0]
[1746744105494,4.58106189,2182.9,2182.3,3.0]
[1746744105795,4.58184751,2182.6,2182.3,3.0]
[1746744105996,4.58157367,2182.7,2182.3,3.0]
[1746744106196,0.11119396,2182.5,2182.3,3.0]
[1746744106416,4.58211143,2182.4,2182.3,3.0]
[1746744106619,4.69309502,2182.4,2182.3,3.0]
[1746744106823,4.5823214,2182.3,2182.2,6.10700509]
[1746744107242,4.69060661,2182.3,2182.2,6.10700509]
[1746744107549,0.10828521,2182.3,2182.2,6.10700509]
[1746744107752,0.10828521,2182.3,2182.2,10.1759881]
[1746744108115,4.5818304,2182.6,2182.2,10.1759881]
[1746744108349,0.10872026,2182.5,2182.3,3.0]
[1746744108555,0.10872026,2182.5,2182.3,3.7537]
[1746744108747,4.58193952,2182.5,2182.3,3.7537]
[1746744108945,4.69057661,2182.4,2182.3,3.0]
[1746744109850,0.10846518,2182.4,2182.3,3.0]
[1746744110331,0.10846518,2182.4,2182.3,9.10700509]
[1746744110532,4.58182281,2182.6,2182.3,9.10700509]
[1746744110839,0.09926276,2182.4,2182.3,9.10700509]
[1746744111041,0.7544,2182.8,2182.3,9.10700509]
[1746744111217,0.09926276,2182.4,2182.3,9.10700509]
[1746744111418,4.58191324,2182.5,2182.3,9.10700509]
[1746744111616,4.68137419,2182.4,2182.3,9.10700509]
[1746744111851,0.09926276,2182.4,2182.3,9.10700509]
[1746744112224,4.68137419,2182.4,2182.3,9.10700509]
[1746744112731,4.68137419,2182.4,2182.3,6.10700509]
[1746744113654,4.68137419,2182.4,2182.0,3.0]
[1746744113655,4.582686,2182.2,2182.0,3.0]
[1746744113876,4.68146334,2182.4,2182.0,7.58291928]
[1746744114027,0.09923246,2182.1,2182.0,3.0]
[1746744114227,4.58228293,2182.4,2182.0,9.10700509]
[1746744114448,0.09923246,2182.1,2182.0,9.10700509]
[1746744114657,4.58228293,2182.4,2182.0,13.68993531]
[1746744114855,0.09923246,2182.1,2182.0,13.68993531]
[1746744115057,4.58190809,2182.5,2182.0,15.9815976]
[1746744115265,0.09923246,2182.1,2182.0,15.9815976]
[1746744115430,4.58190809,2182.5,2182.2,3.0]
[1746744115931,0.09986374,2182.4,2182.2,3.0]
[1746744116759,0.09986374,2182.4,2182.3,3.0]
[1746744116946,4.68206501,2182.4,2182.1,3.0]
[1746744119279,4.58234061,2182.3,2182.2,9.10700509]
[1746744119648,4.68145538,2182.3,2182.2,9.10700509]
[1746744119845,0.09911477,2182.3,2182.2,9.10700509]
[1746744121509,4.68143617,2182.3,2182.2,9.10700509]
[1746744122002,0.09911477,2182.3,2182.2,9.10700509]
[1746744122374,4.5820277,2182.5,2182.2,9.10700509]
[1746744122575,0.09911477,2182.3,2182.2,9.10700509]
[1746744122770,4.5820277,2182.5,2182.2,10.70515146]
[1746744122973,0.8033,2182.7,2182.2,19.77675915]
[1746744122974,0.09911477,2182.3,2182.2,19.77675915]
[1746744123282,4.58130425,2182.8,2182.3,7.58232138]
[1746744123498,0.10034913,2182.7,2182.3,10.73514473]
[1746744123675,9.16278508,2182.8,2182.3,10.68932647]
[1746744123877,0.10034913,2182.7,2182.3,13.12525052]
[1746744124071,4.58156052,2182.7,2182.3,13.12525052]
[1746744124315,0.8224,2183.3,2182.6,3.65636605]
[1746744124614,0.7619,2183.6,2182.8,5.38557197]
[1746744124805,4.58030618,2183.3,2182.8,6.59428592]
[1746744124973,4.58041615,2183.3,2182.8,6.59428592]
[1746744125170,5.36898379,2183.5,2182.8,2.01317465]
[1746744125499,5.36898379,2183.5,2182.3,29.33523475]
[1746744125500,4.58127176,2182.8,2182.2,4.1002]
[1746744125808,0.7688,2182.6,2182.0,4.44756605]
[1746744126106,4.58251756,2182.3,2182.1,3.0]
[1746744126320,0.7688,2182.6,2182.0,4.44756605]
[1746744126321,4.58274139,2182.1,2182.0,4.44756605]
[1746744126498,5.13190148,2182.5,2181.8,0.7912]
[1746744126700,4.5828752,2182.1,2181.8,0.7912]
[1746744126906,4.58295671,2182.0,2181.8,3.7912]
[1746744127098,0.59007015,2182.4,2182.0,3.0]
[1746744127302,4.58190148,2182.5,2182.0,7.58293698]
[1746744127476,4.58223793,2182.4,2182.0,7.58292364]
[1746744127680,4.58202344,2182.5,2182.0,7.58292364]
[1746744128121,4.58202344,2182.5,2182.1,4.58264029]
[1746744128318,5.35061142,2182.6,2182.1,6.1491186]
[1746744128616,4.58190695,2182.5,2182.1,6.1491186]
[1746744128797,4.58219423,2182.4,2182.1,1.52065331]
[1746744129000,0.7688,2182.6,2182.0,6.65636605]
[1746744129314,4.58263938,2182.2,2182.0,6.65636605]
[1746744129521,4.58190148,2182.5,2182.0,3.0]
[1746744129715,4.58268592,2182.2,2182.0,3.0]
[1746744129904,4.58244626,2182.3,2182.0,3.0]
[1746744130089,0.09150518,2182.2,2182.0,3.0]
[1746744130293,4.58244626,2182.3,2182.0,3.0]
[1746744130516,0.09150518,2182.2,2182.0,3.0]
[1746744130791,4.58243548,2182.3,2182.0,3.0]
[1746744130994,0.09129476,2182.1,2182.0,3.0]
[1746744131243,4.58253339,2182.2,2182.0,3.0]
[1746744131461,4.67403615,2182.1,2182.0,3.0]
[1746744132043,4.58295142,2182.0,2181.9,6.10700509]
[1746744132346,4.58379171,2181.6,2181.5,6.10700509]
[1746744132547,4.58400183,2181.5,2181.4,3.0]
[1746744132748,4.58379171,2181.6,2181.4,3.0]
[1746744132749,4.67311017,2181.6,2181.4,3.0]
[1746744132913,4.67267161,2181.5,2181.3,6.57592852]
[1746744133111,0.08866978,2181.5,2181.3,3.308]
[1746744133349,0.08866978,2181.5,2181.4,3.0]
[1746744134249,4.58358161,2181.7,2181.4,3.0]
[1746744134454,4.58381972,2181.6,2181.4,3.0]
[1746744134653,0.08888038,2181.6,2181.4,3.0]
[1746744135133,4.58380197,2181.6,2181.4,3.0]
[1746744135531,0.08866978,2181.5,2181.4,3.0]
[1746744135762,4.58371201,2181.7,2181.4,3.0]
[1746744135947,0.0895631,2181.5,2181.4,3.0]
[1746744136149,4.58371201,2181.7,2181.4,3.0]
[1746744136459,0.0895631,2181.5,2181.4,3.0]
[1746744136630,4.58371163,2181.7,2181.4,3.0]
[1746744136829,0.0895631,2181.5,2181.4,3.0]
[1746744137018,0.7932,2182.1,2181.5,0.8274]
[1746744137222,4.58286167,2182.1,2181.7,4.58353099]
[1746744137449,4.58222252,2182.4,2181.8,4.48376605]
[1746744137664,4.58232635,2182.3,2181.9,7.58308445]
[1746744137821,4.58270875,2182.2,2181.9,3.0]
[1746744138363,0.7932,2182.5,2181.8,7.48376605]
[1746744138569,5.37519422,2182.5,2182.0,3.0]
[1746744138867,4.58215578,2182.4,2182.1,6.10700509]
[1746744139074,5.37513784,2182.5,2182.1,6.10700509]
[1746744139257,4.58324862,2181.9,2181.7,3.0]
[1746744139856,4.58324862,2181.9,2181.6,3.0]
[1746744140364,4.58297507,2182.0,2181.6,3.0]
[1746744140365,4.58309447,2182.0,2181.6,3.0]
[1746744140563,5.39326339,2182.1,2181.6,9.90967263]
[1746744140726,0.8104,2182.4,2182.0,3.0]
[1746744140931,5.39264133,2182.4,2182.0,3.0]
[1746744141155,0.8104,2182.4,2182.1,4.58271864]
[1746744141352,4.58250859,2182.3,2181.9,3.0]
[1746744141657,4.58277239,2182.1,2181.7,5.40125418]
[1746744141825,4.58277239,2182.1,2181.7,6.32514932]
[1746744142027,4.58244745,2182.3,2181.9,3.0]
[1746744142227,4.58244745,2182.3,2181.9,7.58307023]
[1746744142769,4.5825344,2182.2,2181.9,3.0]
[1746744142984,4.5825344,2182.2,2181.8,3.0]
[1746744143127,0.55,2182.3,2181.7,0.8177]
[1746744143332,4.58326965,2181.9,2181.7,0.8177]
[1746744143531,4.58326965,2181.9,2181.6,3.0]
[1746744143872,4.58348573,2181.8,2181.6,3.0]
[1746744144089,4.5834792,2181.8,2181.6,3.0]
[1746744144393,4.67316983,2181.7,2181.6,3.0]
[1746744144580,0.08958822,2181.7,2181.6,3.0]
[1746744144782,4.58347691,2181.8,2181.6,3.0]
[1746744144982,0.08759209,2181.7,2181.6,3.0]
[1746744145184,4.58327074,2181.9,2181.6,3.0]
[1746744145382,0.08759209,2181.7,2181.6,7.58376405]
[1746744145702,1.3779,2182.3,2181.8,9.1666027]
[1746744145703,5.41028847,2182.3,2181.8,9.1666027]
[1746744145901,5.41028847,2182.3,2181.7,3.0]
[1746744146202,0.0883911,2182.2,2181.7,7.5834491]
[1746744146404,5.41032076,2182.3,2181.8,4.58337152]
[1746744146564,0.08818071,2182.1,2181.9,9.15994491]
[1746744146891,4.58223715,2182.4,2181.9,4.57693715]
[1746744147055,4.58223715,2182.4,2181.9,15.26701457]
[1746744147056,0.0879703,2182.0,2181.9,15.26701457]
[1746744147255,4.58223281,2182.4,2181.9,15.26701457]
[1746744147496,0.0879703,2182.0,2181.9,15.26701457]
[1746744147694,4.58236188,2182.3,2181.9,15.26701457]
[1746744148310,0.0883911,2182.2,2182.1,4.58274139]
[1746744148788,3.309,2183.0,2182.3,5.3764249]
[1746744148990,4.58174111,2182.6,2182.4,6.10700509]
[1746744149384,4.58157801,2182.7,2182.4,6.10700509]
[1746744149892,4.58138029,2182.8,2182.4,6.10700509]
[1746744150097,4.58121334,2182.9,2182.4,10.68895784]
[1746744150394,5.39533968,2183.0,2182.6,4.58159796]
[1746744150592,4.5806693,2183.1,2182.4,10.70050388]
[1746744150807,0.8333,2183.4,2182.9,3.8176]
[1746744150972,5.41341978,2183.4,2182.9,9.92460509]
[1746744151166,4.58039661,2183.3,2182.9,9.92460509]
[1746744151366,4.58039661,2183.3,2182.9,14.50562116]
[1746744151367,0.09158111,2183.3,2182.9,14.50562116]
[1746744151569,0.55,2183.5,2183.0,4.58080836]
[1746744151799,0.09168312,2183.2,2183.0,4.58080836]
[1746744152100,4.57988828,2183.5,2183.1,3.0]
[1746744152268,5.41296888,2183.6,2183.0,4.62661409]
[1746744152269,4.58001721,2183.4,2183.0,3.0]
[1746744152470,4.67298135,2183.4,2183.0,3.0]
[1746744152694,0.09277254,2183.4,2183.1,0.75833715]
[1746744153409,4.67280051,2183.4,2183.1,0.75833715]
[1746744154708,0.09277254,2183.4,2183.1,0.75833715]
[1746744154912,0.09277254,2183.4,2183.3,7.58022259]
[1746744155283,4.57850066,2184.2,2183.7,4.57929164]
[1746744155605,5.39753305,2184.6,2183.8,8.33702015]
[1746744155805,5.39753305,2184.6,2183.9,6.10700509]
[1746744155806,4.57834042,2184.2,2183.9,6.10700509]
[1746744156197,0.12833485,2184.2,2184.1,3.0]
[1746744156399,4.57780549,2184.5,2184.0,11.5108758]
[1746744156605,4.67019669,2184.4,2184.0,6.93230509]
[1746744156813,4.67019669,2184.4,2184.1,1.84715276]
[1746744156989,0.09215114,2184.4,2184.1,10.95415785]
[1746744157195,0.09215114,2184.4,2184.1,15.53267006]
[1746744157518,4.5772928,2184.7,2184.1,15.53267006]
[1746744157716,0.09104961,2184.3,2184.2,7.62400402]
[1746744158007,4.57751733,2184.6,2184.3,3.0]
[1746744158214,0.09317029,2184.5,2184.3,9.10700509]
[1746744158397,4.57750371,2184.6,2184.3,9.10700509]
[1746744158710,0.09317029,2184.5,2184.3,9.10700509]
[1746744159324,4.57733691,2184.7,2184.3,9.10700509]
[1746744159521,0.09296032,2184.4,2184.3,9.10700509]
[1746744159725,4.57752127,2184.6,2184.3,9.10700509]
[1746744159892,0.09296032,2184.4,2184.3,9.10700509]
[1746744160093,4.57752127,2184.6,2184.3,10.92386143]
[1746744160293,0.09296032,2184.4,2184.3,9.10700509]
[1746744160492,4.57752127,2184.6,2184.3,9.10700509]
[1746744160693,0.09296032,2184.4,2184.3,9.10700509]
[1746744160922,4.5777247,2184.5,2184.3,9.10700509]
[1746744161122,0.09296032,2184.4,2184.3,9.10700509]
[1746744161654,4.57770956,2184.5,2184.3,9.10700509]
[1746744161824,4.67087645,2184.4,2184.3,9.10700509]
[1746744162025,0.09296032,2184.4,2184.3,9.10700509]
[1746744162244,5.33700028,2185.0,2184.3,10.53312088]
[1746744162445,4.57752644,2184.6,2184.3,9.10700509]
[1746744162782,0.09321484,2184.5,2184.3,9.10700509]
[1746744163156,4.57791613,2184.4,2184.3,9.10700509]
[1746744163525,4.67092101,2184.4,2184.3,6.10700509]
[1746744164349,4.57812571,2184.3,2184.2,9.10700509]
[1746744164658,4.67098462,2184.3,2183.8,4.0661]
[1746744164862,4.57875457,2184.0,2183.2,0.7651]
[1746744165164,4.57854493,2184.1,2183.6,4.57945024]
[1746744165323,0.09218503,2183.9,2183.7,4.62515505]
[1746744165518,0.0923951,2184.0,2183.8,0.7651]
[1746744165849,4.57835262,2184.2,2184.0,3.0]
[1746744166059,4.57747666,2184.7,2184.3,4.57812019]
[1746744166361,4.57747666,2184.7,2184.3,0.04577641]
[1746744166572,0.08600082,2184.6,2184.5,5.34280656]
[1746744166769,4.57674766,2185.0,2184.6,3.0]
[1746744166971,4.57674766,2185.0,2184.6,7.57748548]
[1746744167180,4.5772369,2184.8,2184.6,5.31777782]
[1746744167365,4.57740858,2184.7,2184.5,7.3661]
[1746744167966,4.57709843,2184.8,2184.3,10.87902417]
[1746744168192,4.57701335,2184.9,2184.4,0.04577497]
[1746744168358,4.57719487,2184.8,2184.4,3.04577497]
[1746744168675,5.32917993,2185.2,2184.6,3.0]
[1746744168853,4.57657635,2185.1,2184.7,0.83427313]
[1746744169060,4.57680152,2185.0,2184.8,3.301]
[1746744169257,5.32873016,2185.4,2184.8,3.301]
[1746744169477,4.57677449,2185.0,2184.8,3.301]
[1746744169675,4.57651808,2185.1,2184.8,3.301]
[1746744169884,0.7529,2185.4,2184.8,3.301]
[1746744170052,1.28575219,2185.4,2184.8,3.3467687]
[1746744170253,5.86157545,2185.4,2184.8,3.3467687]
[1746744170560,4.57658807,2185.1,2184.8,3.301]
[1746744170960,5.8615871,2185.4,2184.8,3.301]
[1746744171275,4.57657704,2185.1,2184.9,0.7779]
[1746744171470,4.57603075,2185.3,2184.8,3.301]
[1746744171676,4.57707799,2184.8,2184.5,0.7779]
[1746744171873,4.57812571,2184.3,2184.2,16.24700509]
[1746744172091,4.57770253,2184.6,2184.2,6.10700509]
[1746744172288,4.57776768,2184.5,2184.2,6.10700509]
[1746744172587,0.7719,2185.0,2184.5,0.7779]
[1746744172749,4.57624016,2185.2,2184.6,6.48479509]
[1746744172951,4.57699066,2184.9,2184.6,6.48479509]
[1746744173148,4.57699274,2184.9,2184.6,6.48479509]
[1746744173386,4.57675088,2185.0,2184.7,3.0]
[1746744174192,4.57675284,2185.0,2184.7,3.0]
[1746744174392,4.57675284,2185.0,2184.7,4.48400978]
[1746744174698,4.57707799,2184.8,2184.7,3.0]
[1746744174864,4.5766129,2185.1,2184.7,3.0]
[1746744176061,4.57667429,2185.0,2184.7,3.0]
[1746744176394,4.5768685,2184.9,2184.8,6.10700509]
[1746744176594,4.5767796,2185.0,2184.8,6.10700509]
[1746744176893,4.5768685,2184.9,2184.8,6.10700509]
[1746744178708,0.53285219,2185.4,2184.8,9.7177056]
[1746744178709,4.5765661,2185.1,2184.8,9.7177056]
[1746744178865,4.57665903,2185.0,2184.9,3.0]
[1746744179486,0.7821,2185.3,2184.9,3.0]
[1746744179761,4.5768685,2184.9,2184.8,6.10700509]
[1746744179998,4.57683516,2185.0,2184.8,6.10700509]
[1746744180160,6.0022219,2185.3,2184.8,6.10700509]
[1746744180359,4.57683756,2185.0,2184.8,6.10700509]
[1746744180562,4.5768685,2184.9,2184.8,6.10700509]
[1746744181643,4.5767303,2185.0,2184.8,6.10700509]
[1746744182122,4.5768685,2184.9,2184.8,6.10700509]
[1746744182327,4.5768685,2184.9,2184.4,18.49942165]
[1746744182328,4.57654996,2185.1,2184.6,4.57741578]
[1746744182511,4.57669356,2185.0,2184.7,3.0]
[1746744182829,4.57657791,2185.1,2184.8,0.5]
[1746744183520,4.5768685,2184.9,2184.8,0.5]
[1746744183929,4.57676242,2185.0,2184.8,0.5]
[1746744184238,4.57660256,2185.1,2184.8,0.5]
[1746744184735,4.5768685,2184.9,2184.8,0.5]
[1746744184950,0.7804,2185.7,2185.0,3.0]
[1746744185150,4.57551478,2185.6,2185.1,6.10700509]
[1746744185366,4.57551478,2185.6,2185.1,10.68332255]
[1746744185536,4.57551478,2185.6,2185.1,12.58863469]
[1746744185955,4.57551478,2185.6,2185.2,4.57622378]
[1746744186163,4.57527641,2185.7,2185.2,4.57615009]
[1746744186363,4.57517413,2185.8,2185.3,8.37278892]
[1746744186520,4.57517413,2185.8,2185.3,8.41854782]
[1746744186521,4.57498398,2185.8,2185.3,8.41854782]
[1746744186727,4.57498398,2185.8,2185.3,10.47349404]
[1746744187061,4.57519997,2185.7,2185.3,10.51924776]
[1746744187271,4.574453,2186.1,2185.4,0.8303]
[1746744187568,4.57453407,2186.1,2185.7,0.76]
[1746744187723,4.57420315,2186.2,2185.7,7.40053513]
[1746744187923,5.33592827,2186.7,2185.9,4.57471738]
[1746744188143,4.57368329,2186.5,2186.1,0.76]
[1746744188650,4.57435615,2186.1,2186.0,6.10700509]
[1746744188860,4.57333907,2186.6,2186.0,3.0]
[1746744189086,0.7628,2186.7,2186.1,6.10700509]
[1746744189426,4.57381405,2186.4,2186.2,6.10700509]
[1746744189753,5.12331016,2186.6,2186.2,6.10700509]
[1746744190054,4.5739377,2186.3,2186.2,6.10700509]
[1746744190557,4.5737285,2186.4,2185.9,9.91610509]
[1746744190761,4.57456541,2186.0,2185.9,9.10700509]
[1746744191056,0.58861102,2186.5,2185.9,3.0]
[1746744191057,1.36741102,2186.5,2185.9,3.0]
[1746744191257,4.57448058,2186.1,2185.9,9.10700509]
[1746744191430,4.57448054,2186.1,2185.9,9.10700509]
[1746744191754,5.35190917,2186.7,2186.0,0.8091]
[1746744191954,4.57368377,2186.5,2186.0,5.38361415]
[1746744192165,4.57368377,2186.5,2186.1,6.52661926]
[1746744192365,4.57368377,2186.5,2186.1,1.95227396]
[1746744192518,0.7788,2186.7,2186.0,0.8091]
[1746744192723,4.57386062,2186.4,2186.0,0.8091]
[1746744192935,4.57362675,2186.5,2186.1,0.04573868]
[1746744193237,0.7788,2187.5,2186.5,3.0]
[1746744193438,4.57259729,2187.0,2186.6,6.48791509]
[1746744193654,4.57259729,2187.0,2186.7,6.10700509]
[1746744193853,0.53500621,2187.4,2186.8,0.8091]
[1746744194056,4.57189764,2187.3,2186.9,0.04572503]
[1746744194268,4.57175321,2187.4,2186.9,4.57249212]
[1746744194476,4.57175782,2187.4,2186.9,3.27873904]
[1746744194774,0.78783846,2188.0,2187.1,0.8091]
[1746744194984,4.5705928,2187.9,2187.1,0.8091]
[1746744195154,4.57122271,2187.6,2187.1,0.8091]
[1746744195356,5.35838112,2188.0,2187.1,0.8091]
[1746744195563,4.57174657,2187.4,2187.1,0.8091]
[1746744195874,4.57139948,2187.6,2187.1,0.8091]
[1746744196182,4.57205559,2187.2,2187.1,0.8091]
[1746744196480,4.57144911,2187.5,2186.8,0.7957]
[1746744196481,4.57239548,2187.1,2186.8,0.7957]
[1746744196677,4.57257579,2187.0,2186.8,0.7957]
[1746744197062,4.57257579,2187.0,2186.4,0.7908]
[1746744197063,4.57310101,2186.7,2186.4,0.7908]
[1746744197372,0.55,2187.4,2186.5,0.04573264]
[1746744197587,0.8054,2187.5,2186.5,0.04573264]
[1746744197755,4.57278448,2186.9,2186.6,3.0]
[1746744197933,4.57247071,2187.1,2186.5,6.65636605]
[1746744198134,5.12164651,2187.4,2186.6,7.57327019]
[1746744198338,5.37685042,2187.5,2186.8,3.0]
[1746744198578,4.57202155,2187.3,2186.8,3.0]
[1746744198778,4.57172891,2187.4,2186.9,0.04572135]
[1746744198966,4.5724737,2187.0,2186.8,3.0]
[1746744199149,4.57235231,2187.1,2186.8,3.0]
[1746744199471,4.57289189,2186.8,2186.7,0.7875]
[1746744199677,4.57268279,2186.9,2186.4,0.7719]
[1746744199836,4.57365726,2186.5,2186.1,4.0639]
[1746744200042,4.57365726,2186.5,2186.2,6.10700509]
[1746744200043,4.57364214,2186.5,2186.2,6.10700509]
[1746744200241,4.57364214,2186.5,2186.2,9.12823057]
[1746744200777,4.57378021,2186.4,2186.3,3.0]
[1746744200941,4.57360353,2186.5,2186.3,3.0]
[1746744201147,4.57344202,2186.6,2186.3,3.0]
[1746744201659,4.57356027,2186.5,2186.3,3.0]
[1746744201885,4.57338249,2186.6,2186.3,3.0]
[1746744202381,4.57319129,2186.7,2186.3,7.57386997]
[1746744202586,4.57300174,2186.8,2186.4,4.61945939]
[1746744202748,4.57287048,2186.9,2186.6,3.0]
[1746744202949,4.57234743,2187.1,2186.6,7.57315784]
[1746744203146,4.57234743,2187.1,2186.8,3.0]
[1746744203372,4.57234743,2187.1,2186.8,0.6]
[1746744203572,4.572639,2187.0,2186.6,3.0]
[1746744203784,4.57270954,2186.9,2186.6,3.0]
[1746744203960,11.97952511,2187.5,2186.6,3.0]
[1746744204160,4.57283817,2186.9,2186.6,9.10700509]
[1746744205168,4.57197944,2187.3,2186.6,9.10700509]
[1746744205169,4.57221586,2187.2,2186.7,4.57298129]
[1746744205396,0.8156,2187.8,2186.9,0.7971]
[1746744205563,4.57173087,2187.4,2187.0,6.10700509]
[1746744205768,4.57142962,2187.5,2187.0,10.67947041]
[1746744205963,4.57101065,2187.7,2187.1,4.57212117]
[1746744206168,4.57091204,2187.8,2187.4,0.7971]
[1746744206568,4.1076,2188.1,2187.4,0.7971]
[1746744206788,4.57038391,2188.0,2187.4,0.7971]
[1746744206970,4.57115256,2187.7,2187.4,0.7971]
[1746744207387,0.09283847,2187.6,2187.4,0.7971]
[1746744207784,4.57110532,2187.7,2187.4,0.7971]
[1746744208091,4.5705928,2187.9,2187.4,0.7971]
[1746744208386,0.09325718,2187.8,2187.4,0.7971]
[1746744208593,0.09325718,2187.8,2187.3,9.10700509]
[1746744208594,4.57163756,2187.4,2187.3,6.10700509]
[1746744208899,0.09241968,2187.4,2187.3,6.10700509]
[1746744209057,4.66405724,2187.4,2187.3,6.10700509]
[1746744209966,0.09241968,2187.4,2187.3,6.10700509]
[1746744210491,0.86781928,2187.9,2187.3,6.10700509]
[1746744210656,4.57163756,2187.4,2187.3,6.10700509]
[1746744210984,4.66405724,2187.4,2187.3,6.10700509]
[1746744211555,4.57184656,2187.3,2186.9,9.86170509]
[1746744211756,4.57184656,2187.3,2187.0,6.10700509]
[1746744212001,4.66592824,2187.2,2187.0,6.10700509]
[1746744212164,4.57226464,2187.1,2187.0,6.10700509]
[1746744212352,4.66605268,2187.2,2186.9,3.7547]
[1746744212551,0.09364165,2187.1,2186.9,13.60865539]
[1746744212755,0.09364165,2187.1,2187.0,6.10700509]
[1746744213068,4.57215665,2187.2,2187.0,6.60700509]
[1746744213261,4.57128833,2187.6,2187.0,9.60700509]
[1746744213262,0.09330537,2187.1,2187.0,9.60700509]
[1746744213461,4.57216777,2187.2,2187.0,9.60700509]
[1746744213658,0.09330537,2187.1,2187.0,9.60700509]
[1746744214055,0.09657686,2187.1,2187.0,15.02272773]
[1746744214297,0.00327149,2187.1,2187.0,18.31272773]
[1746744214502,4.57073186,2187.9,2187.5,5.32608578]
[1746744214791,4.65827881,2187.8,2187.5,6.86170509]
[1746744215173,0.08744834,2187.8,2187.6,6.10700509]
[1746744215498,0.8124,2188.6,2187.7,8.30745687]
[1746744215703,0.8124,2188.6,2187.9,0.8129]
[1746744215879,4.56956604,2188.4,2188.0,0.04569896]
[1746744216080,4.56868678,2188.9,2188.3,3.65636605]
[1746744216282,0.8124,2189.2,2188.3,3.65636605]
[1746744216498,0.8124,2189.2,2188.4,6.65663661]
[1746744216499,1.35041482,2189.2,2188.4,6.65663661]
[1746744216792,4.56859058,2188.9,2188.4,11.22617883]
[1746744216957,4.56933973,2188.5,2188.3,3.291]
[1746744217158,4.56924519,2188.6,2188.3,3.0]
[1746744217358,4.56996618,2188.2,2188.1,0.8129]
[1746744217592,4.56996618,2188.2,2187.7,5.26163098]
[1746744217593,0.55,2188.6,2187.8,0.7894]
[1746744217794,4.57010673,2188.2,2187.8,3.7894]
[1746744218100,4.57010673,2188.2,2188.1,0.5]
[1746744218101,4.56996618,2188.2,2188.1,0.5]
[1746744218281,4.56987425,2188.3,2188.1,0.5]
[1746744218473,4.56996618,2188.2,2188.1,0.5]
[1746744219892,4.56941892,2188.5,2187.8,3.7894]
[1746744219893,4.57027889,2188.1,2187.8,3.7894]
[1746744220194,0.8158,2188.8,2187.8,4.12815394]
[1746744220400,4.56985884,2188.3,2187.9,0.81088956]
[1746744220695,4.56944893,2188.5,2188.0,7.57034363]
[1746744220898,4.56944893,2188.5,2188.0,4.61604224]
[1746744221098,4.56944893,2188.5,2188.0,8.27240829]
[1746744221283,4.56921867,2188.6,2188.0,8.27240829]
[1746744221482,4.56921867,2188.6,2188.1,1.66538788]
[1746744221789,4.56936795,2188.5,2188.1,1.66538788]
[1746744222192,4.56924221,2188.6,2188.1,1.66538788]
[1746744222396,4.56937332,2188.5,2188.1,4.66538788]
[1746744222594,4.56924537,2188.6,2188.1,4.66538788]
[1746744222759,4.1252,2189.1,2188.2,2.11370686]
[1746744222963,0.8114,2189.4,2188.4,3.8264]
[1746744223161,4.56839933,2189.0,2188.6,3.0]
[1746744223379,4.56808804,2189.1,2188.6,3.0]
[1746744223380,4.56851693,2188.9,2188.6,3.0]
[1746744223576,4.56839632,2189.0,2188.6,3.83958377]
[1746744223891,4.56839632,2189.0,2188.6,0.83958377]
[1746744223892,4.56853251,2188.9,2188.6,0.83958377]
[1746744224271,4.56853251,2188.9,2188.5,3.0]
[1746744224272,4.56872895,2188.8,2188.5,3.0]
[1746744224684,4.56860613,2188.9,2188.5,3.0]
[1746744224858,4.5683744,2189.0,2188.5,3.0]
[1746744224859,4.568383,2189.0,2188.5,3.0]
[1746744225193,0.55,2189.3,2188.5,3.0]
[1746744225392,4.56913095,2188.6,2188.5,3.0]
[1746744225569,5.92902055,2189.4,2188.5,3.0]
[1746744225570,4.5685864,2188.9,2188.5,3.0]
[1746744225770,4.56835289,2189.0,2188.6,0.04568936]
[1746744225974,1.05177661,2189.3,2188.5,3.0]
[1746744225975,4.56877766,2188.8,2188.5,3.0]
[1746744226301,4.56922517,2188.6,2188.4,0.8264]
[1746744226796,4.56935063,2188.5,2188.2,7.59720686]
[1746744227104,4.56920115,2188.6,2188.2,8.41590686]
[1746744227498,4.56877041,2188.8,2188.4,3.0]
[1746744227672,4.56877041,2188.8,2188.5,0.8187]
[1746744227673,4.56871683,2188.8,2188.5,0.8187]
[1746744228186,4.56839515,2189.0,2188.6,0.5]
[1746744228671,4.56263403,2188.9,2188.6,0.5]
[1746744228870,4.56263403,2188.9,2188.6,3.5]
[1746744229070,4.56263403,2188.9,2188.6,1.38880242]
[1746744229271,4.56263403,2188.9,2188.6,0.5]
[1746744229567,4.56840144,2189.0,2188.7,0.8187]
[1746744229772,4.56864313,2188.9,2188.7,0.8187]
[1746744230102,4.56900668,2188.7,2188.5,3.0]